[Event "23rd ETCC Women 2021"]
[Site "Catez"]
[Date "2021.11.12"]
[Round "1.24"]
[White "Navrotescu, Andreea"]
[Black "Zaritovskaja, Margarita"]
[Result "1-0"]
[ECO "D05"]
[WhiteElo "2210"]
[BlackElo "2040"]
[Annotator "ChessBase"]
[PlyCount "131"]
[EventDate "2021.11.08"]
[EventType "team-tourn"]
[EventCountry "SLO"]
[SourceTitle "playchess.com"]
[Source "ChessBase"]
[SourceQuality "1"]
[WhiteTeam "France"]
[BlackTeam "Sweden"]
[WhiteTeamCountry "FRA"]
[BlackTeamCountry "SWE"]
[TimeControl "40/5400+30:1800+30"]

1. d4 {[%emt 0:00:04]} Nf6 {[%emt 0:00:06]} 2. Nf3 {[%emt 0:00:06]} e6 {
[%emt 0:00:10]} 3. e3 {[%emt 0:01:04]} d5 {[%emt 0:00:49]} 4. Bd3 {[%emt 0:00:
33]} c5 {[%emt 0:03:27]} 5. O-O {[%emt 0:01:13]} Bd6 {[%emt 0:03:40]} 6. b3 {
[%emt 0:05:36]} O-O {[%emt 0:06:13]} 7. Bb2 {[%emt 0:02:05]} Nc6 {[%emt 0:06:
30]} 8. Ne5 {[%emt 0:03:04]} Qc7 {[%emt 0:08:26]} 9. Nxc6 {[%emt 0:07:35]} bxc6
{[%emt 0:08:25]} 10. dxc5 {[%emt 0:02:48]} Bxh2+ {[%emt 0:03:37]} 11. Kh1 {
[%emt 0:00:02]} Be5 {[%emt 0:02:47]} 12. Bd4 {[%emt 0:04:36]} Bxd4 {[%emt 0:03:
21]} 13. exd4 {[%emt 0:00:02]} e5 {[%emt 0:01:48]} 14. Be2 {[%emt 0:06:37]} e4
{[%emt 0:02:39]} 15. Qd2 {[%emt 0:16:35]} e3 {[%emt 0:23:43]} 16. Qxe3 {
[%emt 0:00:52]} Re8 {[%emt 0:03:00]} 17. Qd3 {[%emt 0:00:16]} Qf4 {[%emt 0:06:
07]} 18. Bf3 {[%emt 0:09:17]} Bf5 {[%emt 0:01:49]} 19. Qc3 {[%emt 0:10:12]} Re6
{[%emt 0:01:15]} 20. Kg1 {[%emt 0:05:28]} Ne4 {[%emt 0:05:01]} 21. Bxe4 {
[%emt 0:00:08]} Bxe4 {[%emt 0:00:35]} 22. f3 {[%emt 0:09:07]} Rh6 {[%emt 0:01:
57]} 23. Nd2 {[%emt 0:01:57]} Bxc2 {[%emt 0:02:42]} 24. Rfe1 {[%emt 0:04:14]}
Qh2+ {[%emt 0:01:10]} 25. Kf2 {[%emt 0:00:45]} Qh4+ {[%emt 0:01:22]} 26. Kg1 {
[%emt 0:00:21]} Bf5 {[%emt 0:01:26]} 27. Nf1 {[%emt 0:02:29]} Rg6 {[%emt 0:00:
50]} 28. Qe3 {[%emt 0:01:46]} h5 {[%emt 0:00:20]} 29. Re2 {[%emt 0:02:53]} Qf6
{[%emt 0:00:53]} 30. Qe5 {[%emt 0:01:22]} Qg5 {[%emt 0:00:29]} 31. f4 {[%emt 0:
00:42]} Qf6 {[%emt 0:00:38]} 32. Qxf6 {[%emt 0:01:32]} Rxf6 {[%emt 0:00:31]}
33. g3 {[%emt 0:00:50]} Be4 {[%emt 0:00:26]} 34. Nd2 {[%emt 0:00:24]} Re8 {
[%emt 0:00:34]} 35. Rae1 {[%emt 0:00:37]} Rfe6 {[%emt 0:00:23]} 36. b4 {
[%emt 0:00:38]} Bd3 {[%emt 0:00:37]} 37. Rxe6 {[%emt 0:00:28]} Rxe6 {[%emt 0:
00:01]} 38. Rxe6 {[%emt 0:00:29]} fxe6 {[%emt 0:00:01]} 39. Nb3 {[%emt 0:00:31]
} Kf8 {[%emt 0:00:29]} 40. Na5 {[%emt 0:00:22]} Bb5 {[%emt 0:00:07]} 41. Nb7 {
[%emt 0:02:24]} a6 {[%emt 0:06:32]} 42. Nd6 {[%emt 0:00:36]} Ke7 {[%emt 0:01:
58]} 43. Kf2 {[%emt 0:03:32]} Kf6 {[%emt 0:02:05]} 44. Kf3 {[%emt 0:03:23]} g6
{[%emt 0:04:17]} 45. Ke3 {[%emt 0:01:26]} g5 {[%emt 0:05:32]} 46. Ne8+ {
[%emt 0:00:35]} Kf7 {[%emt 0:01:41]} 47. Nc7 {[%emt 0:01:28]} g4 {[%emt 0:01:
09]} 48. Na8 {[%emt 0:01:46]} Kf6 {[%emt 0:01:37]} 49. Nb6 {[%emt 0:00:37]} Ke7
{[%emt 0:06:49]} 50. a4 {[%emt 0:05:27]} Bf1 {[%emt 0:00:26]} 51. Nc8+ {
[%emt 0:00:50]} Kd7 {[%emt 0:00:50]} 52. Nd6 {[%emt 0:00:17]} Bc4 {[%emt 0:02:
14]} 53. f5 {[%emt 0:01:13]} exf5 {[%emt 0:00:44]} 54. Nxf5 {[%emt 0:00:39]}
Bb3 {[%emt 0:00:35]} 55. a5 {[%emt 0:02:32]} Bc2 {[%emt 0:01:34]} 56. Ng7 {
[%emt 0:00:34]} Bg6 {[%emt 0:00:19]} 57. Kf4 {[%emt 0:00:02]} h4 {[%emt 0:01:
08]} 58. gxh4 {[%emt 0:01:10]} g3 {[%emt 0:00:12]} 59. Kxg3 {[%emt 0:00:05]}
Ke7 {[%emt 0:00:20]} 60. h5 {[%emt 0:03:30]} Bd3 {[%emt 0:01:09]} 61. Kf4 {
[%emt 0:00:14]} Kf6 {[%emt 0:00:33]} 62. Ne8+ {[%emt 0:00:06]} Ke7 {[%emt 0:00:
37]} 63. Nc7 {[%emt 0:00:56]} Kf6 {[%emt 0:00:19]} 64. b5 {[%emt 0:02:14]} cxb5
{[%emt 0:00:54]} 65. Nxa6 {[%emt 0:00:19]} Bf5 {[%emt 0:00:25]} 66. Nb4 {
[%emt 0:00:07]} 1-0

[Event "23rd ETCC Women 2021"]
[Site "Catez"]
[Date "2021.11.12"]
[Round "1.25"]
[White "Heinemann, Josefine"]
[Black "Georgescu, Lena"]
[Result "1-0"]
[ECO "B90"]
[WhiteElo "2336"]
[BlackElo "2262"]
[Annotator "NA"]
[PlyCount "98"]
[EventDate "2021.11.08"]
[EventType "team-tourn"]
[EventCountry "SLO"]
[SourceTitle "playchess.com"]
[Source "ChessBase"]
[SourceQuality "1"]
[WhiteTeam "Germany"]
[BlackTeam "Switzerland"]
[WhiteTeamCountry "GER"]
[BlackTeamCountry "SUI"]
[TimeControl "40/5400+30:1800+30"]

1. e4 {[%emt 0:00:03]} c5 {[%emt 0:00:04]} 2. Nf3 {[%emt 0:00:05]} d6 {[%emt 0:
00:03]} 3. d4 {[%emt 0:00:06]} cxd4 {[%emt 0:00:04]} 4. Nxd4 {[%emt 0:00:05]}
Nf6 {[%emt 0:00:05]} 5. Nc3 {[%emt 0:00:04]} a6 {[%emt 0:00:03]} 6. f3 {
[%emt 0:00:13]} e5 {[%emt 0:00:04]} 7. Nb3 {[%emt 0:00:04]} Be6 {[%emt 0:00:04]
} 8. Be3 {[%emt 0:00:07]} Be7 {[%emt 0:00:04]} 9. Qd2 {[%emt 0:01:06]} h5 {
[%emt 0:00:13]} 10. Be2 {[%emt 0:03:46]} Nbd7 {[%emt 0:00:37]} 11. a4 {[%emt 0:
00:52]} Qc7 {[%emt 0:09:37]} 12. O-O {[%emt 0:02:32]} Rc8 {[%emt 0:00:47]} 13.
a5 {[%emt 0:03:00]} O-O {[%emt 0:02:41]} 14. Rfc1 {[%emt 0:01:34]} Rfe8 {
[%emt 0:13:50]} 15. Nd5 {[%emt 0:00:53]} Bxd5 {[%emt 0:04:21]} 16. exd5 {
[%emt 0:00:07]} e4 {[%emt 0:00:18]} 17. f4 {[%emt 0:06:24]} Ng4 {[%emt 0:02:51]
} 18. Bxg4 {[%emt 0:03:12]} hxg4 {[%emt 0:00:02]} 19. c4 {[%emt 0:00:19]} Nf6 {
[%emt 0:05:15]} 20. Nd4 {[%emt 0:09:01]} Qd7 {[%emt 0:04:52]} 21. g3 {[%emt 0:
06:04]} Nh5 {[%emt 0:07:00]} 22. b4 {[%emt 0:06:44]} Bf6 {[%emt 0:00:57]} 23.
Ra2 {[%emt 0:04:22]} g6 {[%emt 0:01:30]} 24. Rac2 {[%emt 0:07:24]} Ng7 {
[%emt 0:02:49]} 25. Kg2 {[%emt 0:08:59]} Rc7 {[%emt 0:17:31]} 26. Ne2 {[%emt 0:
04:19]} Nf5 {[%emt 0:00:39]} 27. Bb6 {[%emt 0:00:44]} Rcc8 {[%emt 0:03:28]} 28.
Kg1 {[%emt 0:06:16]} Kg7 {[%emt 0:06:00]} 29. Nd4 {[%emt 0:06:16]} Nxd4 {
[%emt 0:12:37]} 30. Bxd4 {[%emt 0:00:04]} Bxd4+ {[%emt 0:00:08]} 31. Qxd4+ {
[%emt 0:00:04]} Kg8 {[%emt 0:00:51]} 32. Re2 {[%emt 0:03:36]} Qe7 {[%emt 0:01:
51]} 33. c5 {[%emt 0:01:41]} f5 {[%emt 0:02:33]} 34. Rc3 {[%emt 0:01:48]} dxc5
{[%emt 0:01:33]} 35. bxc5 {[%emt 0:00:05]} Red8 {[%emt 0:00:11]} 36. Rb2 {
[%emt 0:02:28]} Qf7 {[%emt 0:00:43]} 37. d6 {[%emt 0:01:44]} Rd7 {[%emt 0:00:
28]} 38. Kf2 {[%emt 0:01:33]} Qe6 {[%emt 0:01:09]} 39. Ke3 {[%emt 0:01:39]} Rh7
{[%emt 0:00:58]} 40. Qc4 {[%emt 0:02:08]} Qxc4 {[%emt 0:00:32]} 41. Rxc4 {
[%emt 0:32:39]} Rd7 {[%emt 0:03:18]} 42. Kd4 {[%emt 0:00:00]} Re8 {[%emt 0:08:
10]} 43. Rb3 {[%emt 0:00:00]} Kf7 {[%emt 0:04:25]} 44. Rcb4 {[%emt 0:00:00]}
Ke6 {[%emt 0:01:59]} 45. Rxb7 {[%emt 0:00:00]} Rxb7 {[%emt 0:00:15]} 46. Rxb7 {
[%emt 0:00:00]} Rh8 {[%emt 0:00:09]} 47. Re7+ {[%emt 0:00:00]} Kf6 {[%emt 0:00:
04]} 48. c6 {[%emt 0:00:00]} Rxh2 {[%emt 0:00:25]} 49. c7 {[%emt 0:00:00]} Rd2+
{[%emt 0:00:39]} 1-0

[Event "23rd ETCC Women 2021"]
[Site "Catez"]
[Date "2021.11.12"]
[Round "1.26"]
[White "Hakimifard, Ghazal"]
[Black "Klek, Hanna Marie"]
[Result "1-0"]
[ECO "C77"]
[WhiteElo "2267"]
[BlackElo "2343"]
[Annotator "NA"]
[PlyCount "65"]
[EventDate "2021.11.08"]
[EventType "team-tourn"]
[EventCountry "SLO"]
[SourceTitle "playchess.com"]
[Source "ChessBase"]
[SourceQuality "1"]
[WhiteTeam "Switzerland"]
[BlackTeam "Germany"]
[WhiteTeamCountry "SUI"]
[BlackTeamCountry "GER"]
[TimeControl "40/5400+30:1800+30"]

1. e4 {[%emt 0:00:03]} e5 {[%emt 0:00:05]} 2. Nf3 {[%emt 0:00:05]} Nc6 {
[%emt 0:00:05]} 3. Bb5 {[%emt 0:00:05]} a6 {[%emt 0:00:05]} 4. Ba4 {[%emt 0:00:
04]} Nf6 {[%emt 0:00:05]} 5. d3 {[%emt 0:00:08]} d6 {[%emt 0:00:07]} 6. c3 {
[%emt 0:00:10]} g6 {[%emt 0:00:06]} 7. O-O {[%emt 0:00:08]} Bg7 {[%emt 0:00:06]
} 8. Nbd2 {[%emt 0:00:17]} O-O {[%emt 0:00:09]} 9. Re1 {[%emt 0:00:33]} h6 {
[%emt 0:00:14]} 10. Nf1 {[%emt 0:00:24]} b5 {[%emt 0:02:49]} 11. Bb3 {[%emt 0:
02:38]} Re8 {[%emt 0:02:15]} 12. h3 {[%emt 0:04:17]} a5 {[%emt 0:03:29]} 13. a4
{[%emt 0:01:33]} b4 {[%emt 0:00:52]} 14. Ne3 {[%emt 0:10:28]} Rb8 {[%emt 0:02:
42]} 15. Nd5 {[%emt 0:02:42]} bxc3 {[%emt 0:02:48]} 16. bxc3 {[%emt 0:01:02]}
Nxd5 {[%emt 0:09:06]} 17. Bxd5 {[%emt 0:11:50]} Ne7 {[%emt 0:03:29]} 18. Ba2 {
[%emt 0:00:04]} d5 {[%emt 0:02:32]} 19. Ba3 {[%emt 0:03:52]} c6 {[%emt 0:04:49]
} 20. d4 {[%emt 0:06:47]} exd4 {[%emt 0:11:24]} 21. Nxd4 {[%emt 0:02:27]} Bb7 {
[%emt 0:10:35]} 22. Qf3 {[%emt 0:03:38]} Nc8 {[%emt 0:08:31]} 23. exd5 {
[%emt 0:08:23]} Rxe1+ {[%emt 0:00:14]} 24. Rxe1 {[%emt 0:00:01]} cxd5 {[%emt 0:
00:10]} 25. Qf4 {[%emt 0:05:55]} Ra8 {[%emt 0:01:01]} 26. Nb5 {[%emt 0:02:19]}
Bc6 {[%emt 0:01:15]} 27. Bc5 {[%emt 0:04:33]} Bxb5 {[%emt 0:06:16]} 28. axb5 {
[%emt 0:00:01]} a4 {[%emt 0:06:53]} 29. Qf3 {[%emt 0:05:53]} Nb6 {[%emt 0:06:
35]} 30. Re7 {[%emt 0:00:38]} f5 {[%emt 0:04:13]} 31. Bxb6 {[%emt 0:02:07]}
Qxe7 {[%emt 0:00:06]} 32. Qxd5+ {[%emt 0:00:03]} Kh7 {[%emt 0:00:46]} 33. Qxa8
{[%emt 0:00:11]} 1-0

[Event "23rd ETCC Women 2021"]
[Site "Catez"]
[Date "2021.11.12"]
[Round "1.27"]
[White "Schneider, Jana"]
[Black "Stoeri, Laura"]
[Result "1-0"]
[ECO "C96"]
[WhiteElo "2269"]
[BlackElo "2130"]
[Annotator "NA"]
[PlyCount "77"]
[EventDate "2021.11.08"]
[EventType "team-tourn"]
[EventCountry "SLO"]
[SourceTitle "playchess.com"]
[Source "ChessBase"]
[SourceQuality "1"]
[WhiteTeam "Germany"]
[BlackTeam "Switzerland"]
[WhiteTeamCountry "GER"]
[BlackTeamCountry "SUI"]
[TimeControl "40/5400+30:1800+30"]

1. e4 {[%emt 0:00:05]} e5 {[%emt 0:00:06]} 2. Nf3 {[%emt 0:00:06]} Nc6 {
[%emt 0:00:04]} 3. Bb5 {[%emt 0:00:07]} a6 {[%emt 0:00:05]} 4. Ba4 {[%emt 0:00:
05]} Nf6 {[%emt 0:00:10]} 5. O-O {[%emt 0:00:09]} Be7 {[%emt 0:00:44]} 6. Re1 {
[%emt 0:00:11]} b5 {[%emt 0:03:08]} 7. Bb3 {[%emt 0:00:12]} d6 {[%emt 0:00:13]}
8. c3 {[%emt 0:00:17]} O-O {[%emt 0:02:45]} 9. h3 {[%emt 0:00:14]} Na5 {
[%emt 0:01:33]} 10. Bc2 {[%emt 0:00:09]} c5 {[%emt 0:00:07]} 11. d4 {[%emt 0:
00:10]} cxd4 {[%emt 0:11:49]} 12. cxd4 {[%emt 0:00:10]} Nc6 {[%emt 0:00:12]}
13. Nc3 {[%emt 0:00:30]} Bb7 {[%emt 0:22:33]} 14. d5 {[%emt 0:00:58]} Nb8 {
[%emt 0:03:43]} 15. Be3 {[%emt 0:16:38]} Nbd7 {[%emt 0:00:26]} 16. Qd2 {
[%emt 0:02:58]} Rc8 {[%emt 0:04:39]} 17. Rec1 {[%emt 0:06:19]} Re8 {[%emt 0:04:
24]} 18. Qe1 {[%emt 0:11:20]} Qc7 {[%emt 0:10:23]} 19. Bb1 {[%emt 0:02:51]} Qa5
{[%emt 0:07:42]} 20. a3 {[%emt 0:06:08]} Qd8 {[%emt 0:02:52]} 21. Nd2 {[%emt 0:
05:02]} Nb6 {[%emt 0:05:03]} 22. Bd3 {[%emt 0:02:43]} Nfd7 {[%emt 0:02:08]} 23.
b4 {[%emt 0:05:13]} f5 {[%emt 0:01:55]} 24. f3 {[%emt 0:07:47]} Bh4 {[%emt 0:
02:00]} 25. Qe2 {[%emt 0:04:18]} Nf6 {[%emt 0:03:21]} 26. a4 {[%emt 0:01:28]}
f4 {[%emt 0:03:15]} 27. Bf2 {[%emt 0:00:59]} Bxf2+ {[%emt 0:00:07]} 28. Qxf2 {
[%emt 0:01:32]} bxa4 {[%emt 0:04:24]} 29. Qf1 {[%emt 0:03:27]} Nh5 {[%emt 0:02:
08]} 30. Qd1 {[%emt 0:03:56]} Qd7 {[%emt 0:00:24]} 31. b5 {[%emt 0:00:40]} Rxc3
{[%emt 0:02:50]} 32. Rxc3 {[%emt 0:00:06]} axb5 {[%emt 0:00:02]} 33. Qb1 {
[%emt 0:01:58]} Ba6 {[%emt 0:00:10]} 34. Qb4 {[%emt 0:00:33]} Na8 {[%emt 0:00:
50]} 35. Kh2 {[%emt 0:01:26]} Rd8 {[%emt 0:01:10]} 36. Rac1 {[%emt 0:00:41]}
Qa7 {[%emt 0:00:27]} 37. Qa5 {[%emt 0:00:52]} Rb8 {[%emt 0:00:07]} 38. Rc6 {
[%emt 0:00:32]} Rb6 {[%emt 0:00:58]} 39. Rc8+ {[%emt 0:00:22]} 1-0

[Event "23rd ETCC Women 2021"]
[Site "Catez"]
[Date "2021.11.12"]
[Round "1.28"]
[White "De Seroux, Camille"]
[Black "Lubbe, Melanie"]
[Result "0-1"]
[ECO "A45"]
[WhiteElo "2125"]
[BlackElo "2311"]
[Annotator "NA"]
[PlyCount "54"]
[EventDate "2021.11.08"]
[EventType "team-tourn"]
[EventCountry "SLO"]
[SourceTitle "playchess.com"]
[Source "ChessBase"]
[SourceQuality "1"]
[WhiteTeam "Switzerland"]
[BlackTeam "Germany"]
[WhiteTeamCountry "SUI"]
[BlackTeamCountry "GER"]
[TimeControl "40/5400+30:1800+30"]

1. d4 {[%emt 0:00:04]} Nf6 {[%emt 0:00:04]} 2. Bf4 {[%emt 0:00:08]} g6 {
[%emt 0:00:14]} 3. Nc3 {[%emt 0:00:32]} d5 {[%emt 0:01:06]} 4. e3 {[%emt 0:01:
34]} a6 {[%emt 0:05:19]} 5. Be2 {[%emt 0:04:16]} Bg7 {[%emt 0:05:47]} 6. h4 {
[%emt 0:04:06]} c5 {[%emt 0:10:45]} 7. dxc5 {[%emt 0:23:12]} Qa5 {[%emt 0:05:
27]} 8. Qd2 {[%emt 0:01:41]} Qxc5 {[%emt 0:04:26]} 9. O-O-O {[%emt 0:08:51]}
O-O {[%emt 0:10:34]} 10. h5 {[%emt 0:04:51]} Nc6 {[%emt 0:15:54]} 11. hxg6 {
[%emt 0:05:45]} fxg6 {[%emt 0:00:03]} 12. Bh6 {[%emt 0:02:48]} Bxh6 {[%emt 0:
03:25]} 13. Rxh6 {[%emt 0:00:17]} Be6 {[%emt 0:05:15]} 14. f3 {[%emt 0:22:21]}
Rad8 {[%emt 0:02:34]} 15. Bd3 {[%emt 0:01:39]} Kg7 {[%emt 0:07:54]} 16. Rh2 {
[%emt 0:03:48]} Bg8 {[%emt 0:00:06]} 17. Nge2 {[%emt 0:01:31]} e5 {[%emt 0:00:
26]} 18. e4 {[%emt 0:05:40]} dxe4 {[%emt 0:03:33]} 19. Qh6+ {[%emt 0:01:51]}
Kh8 {[%emt 0:00:13]} 20. Nxe4 {[%emt 0:01:27]} Nxe4 {[%emt 0:01:02]} 21. fxe4 {
[%emt 0:00:16]} Rxd3 {[%emt 0:09:53]} 22. Rxd3 {[%emt 0:01:24]} Nb4 {[%emt 0:
00:03]} 23. Nc3 {[%emt 0:02:19]} Nxd3+ {[%emt 0:01:32]} 24. cxd3 {[%emt 0:00:
04]} Rf1+ {[%emt 0:02:09]} 25. Kd2 {[%emt 0:00:34]} Qf2+ {[%emt 0:01:08]} 26.
Ne2 {[%emt 0:00:05]} Qe1+ {[%emt 0:01:02]} 27. Ke3 {[%emt 0:00:49]} Rf2 {
[%emt 0:00:13]} 0-1

[Event "23rd ETCC Women 2021"]
[Site "Catez"]
[Date "2021.11.12"]
[Round "1.29"]
[White "Cvitan, Ena"]
[Black "Mkrtchian, Lilit"]
[Result "0-1"]
[ECO "E11"]
[WhiteElo "2234"]
[BlackElo "2379"]
[Annotator "NA"]
[PlyCount "48"]
[EventDate "2021.11.08"]
[EventType "team-tourn"]
[EventCountry "SLO"]
[SourceTitle "playchess.com"]
[Source "ChessBase"]
[SourceQuality "1"]
[WhiteTeam "Croatia"]
[BlackTeam "Armenia"]
[WhiteTeamCountry "CRO"]
[BlackTeamCountry "ARM"]
[TimeControl "40/5400+30:1800+30"]

1. d4 {[%emt 0:00:11]} Nf6 {[%emt 0:00:23]} 2. c4 {[%emt 0:00:23]} e6 {[%emt 0:
00:06]} 3. Nf3 {[%emt 0:00:15]} Bb4+ {[%emt 0:03:17]} 4. Nbd2 {[%emt 0:00:26]}
O-O {[%emt 0:00:31]} 5. a3 {[%emt 0:00:49]} Be7 {[%emt 0:00:08]} 6. e4 {
[%emt 0:01:23]} d6 {[%emt 0:02:28]} 7. Be2 {[%emt 0:01:37]} Nbd7 {[%emt 0:03:
09]} 8. O-O {[%emt 0:00:52]} e5 {[%emt 0:00:25]} 9. d5 {[%emt 0:02:30]} Nc5 {
[%emt 0:04:46]} 10. Qc2 {[%emt 0:03:58]} a5 {[%emt 0:00:07]} 11. b3 {[%emt 0:
04:09]} Nh5 {[%emt 0:11:36]} 12. g3 {[%emt 0:15:28]} f5 {[%emt 0:09:34]} 13.
Nxe5 {[%emt 0:21:36]} Qe8 {[%emt 0:20:26]} 14. Nd3 {[%emt 0:03:50]} Nxe4 {
[%emt 0:01:14]} 15. Bb2 {[%emt 0:04:48]} Bg5 {[%emt 0:10:50]} 16. Nf3 {[%emt 0:
01:23]} f4 {[%emt 0:09:40]} 17. Nxg5 {[%emt 0:16:11]} Nxg5 {[%emt 0:00:05]} 18.
Rae1 {[%emt 0:06:29]} Qg6 {[%emt 0:05:46]} 19. Qc3 {[%emt 0:01:33]} f3 {
[%emt 0:03:02]} 20. Bd1 {[%emt 0:00:17]} Bh3 {[%emt 0:00:21]} 21. Bc2 {[%emt 0:
01:19]} Bg2 {[%emt 0:02:23]} 22. h4 {[%emt 0:01:29]} Nh3+ {[%emt 0:00:31]} 23.
Kh2 {[%emt 0:00:05]} Nf6 {[%emt 0:00:13]} 24. Ne5 {[%emt 0:03:41]} dxe5 {
[%emt 0:00:19]} 0-1

[Event "23rd ETCC Women 2021"]
[Site "Catez"]
[Date "2021.11.12"]
[Round "1.30"]
[White "Sargsyan, Anna M."]
[Black "Medic, Mirjana"]
[Result "1/2-1/2"]
[ECO "D37"]
[WhiteElo "2385"]
[BlackElo "2196"]
[Annotator "NA"]
[PlyCount "100"]
[EventDate "2021.11.08"]
[EventType "team-tourn"]
[EventCountry "SLO"]
[SourceTitle "playchess.com"]
[Source "ChessBase"]
[SourceQuality "1"]
[WhiteTeam "Armenia"]
[BlackTeam "Croatia"]
[WhiteTeamCountry "ARM"]
[BlackTeamCountry "CRO"]
[TimeControl "40/5400+30:1800+30"]

1. d4 {[%emt 0:00:05]} d5 {[%emt 0:00:09]} 2. c4 {[%emt 0:00:08]} e6 {[%emt 0:
00:06]} 3. Nf3 {[%emt 0:00:05]} Nf6 {[%emt 0:00:06]} 4. Nc3 {[%emt 0:00:05]}
Be7 {[%emt 0:00:25]} 5. Bf4 {[%emt 0:00:06]} O-O {[%emt 0:00:30]} 6. e3 {
[%emt 0:00:07]} b6 {[%emt 0:00:32]} 7. cxd5 {[%emt 0:00:07]} Nxd5 {[%emt 0:00:
20]} 8. Nxd5 {[%emt 0:00:08]} exd5 {[%emt 0:00:03]} 9. Bd3 {[%emt 0:00:53]} c5
{[%emt 0:02:31]} 10. dxc5 {[%emt 0:00:11]} bxc5 {[%emt 0:00:06]} 11. O-O {
[%emt 0:00:04]} Nd7 {[%emt 0:22:15]} 12. b4 {[%emt 0:05:37]} Bb7 {[%emt 0:06:
50]} 13. bxc5 {[%emt 0:02:32]} Nxc5 {[%emt 0:00:50]} 14. Bc2 {[%emt 0:00:21]}
Ba6 {[%emt 0:09:09]} 15. Re1 {[%emt 0:00:27]} Ne4 {[%emt 0:00:12]} 16. Nd4 {
[%emt 0:00:28]} Bf6 {[%emt 0:01:24]} 17. Rc1 {[%emt 0:14:51]} Rc8 {[%emt 0:02:
13]} 18. f3 {[%emt 0:00:20]} Nd6 {[%emt 0:11:25]} 19. Bb3 {[%emt 0:02:34]} Bc4
{[%emt 0:03:58]} 20. Kh1 {[%emt 0:05:26]} Qb6 {[%emt 0:02:06]} 21. Rb1 {
[%emt 0:01:55]} Qa6 {[%emt 0:00:34]} 22. Bc2 {[%emt 0:00:18]} Nb5 {[%emt 0:03:
00]} 23. Nxb5 {[%emt 0:01:09]} Bxb5 {[%emt 0:00:01]} 24. Bf5 {[%emt 0:02:51]}
Rc6 {[%emt 0:04:55]} 25. Qxd5 {[%emt 0:01:50]} Bc4 {[%emt 0:00:24]} 26. Qe4 {
[%emt 0:01:46]} Bxa2 {[%emt 0:01:50]} 27. Rbc1 {[%emt 0:07:57]} Rxc1 {[%emt 0:
02:23]} 28. Bxh7+ {[%emt 0:00:08]} Kh8 {[%emt 0:00:05]} 29. Rxc1 {[%emt 0:00:
05]} g6 {[%emt 0:05:35]} 30. Bxg6 {[%emt 0:00:54]} fxg6 {[%emt 0:00:01]} 31.
Qxg6 {[%emt 0:00:11]} Bf7 {[%emt 0:00:48]} 32. Qh6+ {[%emt 0:01:28]} Kg8 {
[%emt 0:00:35]} 33. Be5 {[%emt 0:04:25]} Rc8 {[%emt 0:00:37]} 34. Rg1 {[%emt 0:
00:45]} Rc6 {[%emt 0:00:49]} 35. Bxf6 {[%emt 0:07:57]} Rxf6 {[%emt 0:00:05]}
36. Qg5+ {[%emt 0:00:05]} Rg6 {[%emt 0:00:56]} 37. Qd8+ {[%emt 0:00:05]} Kg7 {
[%emt 0:01:13]} 38. Qd4+ {[%emt 0:01:23]} Kh7 {[%emt 0:00:44]} 39. f4 {[%emt 0:
00:26]} Qb6 {[%emt 0:01:28]} 40. f5 {[%emt 0:00:24]} Rh6 {[%emt 0:00:48]} 41.
Qd7 {[%emt 0:31:43]} Kg7 {[%emt 0:31:28]} 42. e4 {[%emt 0:03:29]} Qb8 {[%emt 0:
03:26]} 43. h3 {[%emt 0:00:41]} Qe5 {[%emt 0:03:32]} 44. Qd3 {[%emt 0:04:40]}
Rd6 {[%emt 0:00:20]} 45. Qe3 {[%emt 0:00:53]} a5 {[%emt 0:01:45]} 46. Rc1 {
[%emt 0:08:31]} a4 {[%emt 0:04:02]} 47. Re1 {[%emt 0:06:18]} Be8 {[%emt 0:00:
00]} 48. Rc1 {[%emt 0:00:00]} Bf7 {[%emt 0:00:00]} 49. Re1 {[%emt 0:00:00]} Be8
{[%emt 0:00:00]} 50. Rc1 {[%emt 0:00:00]} Bf7 {[%emt 0:00:00]} 1/2-1/2

[Event "23rd ETCC Women 2021"]
[Site "Catez"]
[Date "2021.11.12"]
[Round "1.31"]
[White "Berke, Ana"]
[Black "Gaboyan, Susanna"]
[Result "0-1"]
[ECO "B31"]
[WhiteElo "2135"]
[BlackElo "2253"]
[Annotator "NA"]
[PlyCount "95"]
[EventDate "2021.11.08"]
[EventType "team-tourn"]
[EventCountry "SLO"]
[SourceTitle "playchess.com"]
[Source "ChessBase"]
[SourceQuality "1"]
[WhiteTeam "Croatia"]
[BlackTeam "Armenia"]
[WhiteTeamCountry "CRO"]
[BlackTeamCountry "ARM"]
[TimeControl "40/5400+30:1800+30"]

1. e4 {[%emt 0:00:06]} c5 {[%emt 0:00:08]} 2. Nf3 {[%emt 0:00:13]} Nc6 {
[%emt 0:00:07]} 3. Bb5 {[%emt 0:00:04]} g6 {[%emt 0:00:07]} 4. O-O {[%emt 0:01:
48]} Bg7 {[%emt 0:00:16]} 5. Bxc6 {[%emt 0:01:14]} dxc6 {[%emt 0:00:08]} 6. h3
{[%emt 0:00:22]} e5 {[%emt 0:01:10]} 7. d3 {[%emt 0:00:29]} f6 {[%emt 0:00:07]}
8. a4 {[%emt 0:01:37]} Nh6 {[%emt 0:04:22]} 9. Nbd2 {[%emt 0:03:43]} Be6 {
[%emt 0:01:13]} 10. Nc4 {[%emt 0:02:22]} Nf7 {[%emt 0:05:16]} 11. Be3 {[%emt 0:
12:16]} Qe7 {[%emt 0:04:10]} 12. Nfd2 {[%emt 0:12:46]} g5 {[%emt 0:07:21]} 13.
Nb3 {[%emt 0:04:41]} b6 {[%emt 0:00:43]} 14. a5 {[%emt 0:03:14]} Bxc4 {[%emt 0:
02:47]} 15. dxc4 {[%emt 0:00:16]} O-O {[%emt 0:00:30]} 16. Qg4 {[%emt 0:09:42]}
Nd6 {[%emt 0:02:29]} 17. Nd2 {[%emt 0:02:29]} Qf7 {[%emt 0:00:19]} 18. Rfd1 {
[%emt 0:02:41]} h5 {[%emt 0:07:50]} 19. Qe2 {[%emt 0:02:20]} Qg6 {[%emt 0:02:
47]} 20. axb6 {[%emt 0:01:46]} axb6 {[%emt 0:01:01]} 21. b4 {[%emt 0:04:36]}
Nxe4 {[%emt 0:28:20]} 22. Rxa8 {[%emt 0:05:32]} Rxa8 {[%emt 0:00:40]} 23. Nxe4
{[%emt 0:00:54]} Qxe4 {[%emt 0:00:37]} 24. bxc5 {[%emt 0:00:46]} bxc5 {[%emt 0:
01:20]} 25. Qxh5 {[%emt 0:01:48]} Qxc4 {[%emt 0:01:36]} 26. Rd7 {[%emt 0:03:19]
} Qe6 {[%emt 0:01:17]} 27. Rb7 {[%emt 0:02:23]} Qe8 {[%emt 0:02:05]} 28. Qg4 {
[%emt 0:04:00]} e4 {[%emt 0:02:13]} 29. h4 {[%emt 0:04:35]} Rb8 {[%emt 0:03:54]
} 30. Rxb8 {[%emt 0:02:28]} Qxb8 {[%emt 0:00:02]} 31. Qe6+ {[%emt 0:00:33]} Kh8
{[%emt 0:02:17]} 32. hxg5 {[%emt 0:01:06]} fxg5 {[%emt 0:00:59]} 33. Qh3+ {
[%emt 0:00:20]} Kg8 {[%emt 0:00:12]} 34. Qe6+ {[%emt 0:00:08]} Kh8 {[%emt 0:00:
06]} 35. Qxe4 {[%emt 0:01:20]} Qd8 {[%emt 0:02:32]} 36. g3 {[%emt 0:00:59]} Bd4
{[%emt 0:02:37]} 37. Bxd4+ {[%emt 0:02:05]} Qxd4 {[%emt 0:01:39]} 38. Qxd4+ {
[%emt 0:07:02]} cxd4 {[%emt 0:00:07]} 39. Kg2 {[%emt 0:00:09]} Kg7 {[%emt 0:06:
01]} 40. Kf3 {[%emt 0:00:17]} Kf6 {[%emt 0:00:12]} 41. Ke4 {[%emt 0:30:46]} c5
{[%emt 0:30:06]} 42. Kd5 {[%emt 0:00:00]} g4 {[%emt 0:00:00]} 43. Ke4 {[%emt 0:
00:00]} Ke6 {[%emt 0:00:00]} 44. Kf4 {[%emt 0:00:00]} Kd5 {[%emt 0:00:00]} 45.
f3 {[%emt 0:00:00]} c4 {[%emt 0:00:00]} 46. fxg4 {[%emt 0:00:00]} c3 {[%emt 0:
00:00]} 47. g5 {[%emt 0:00:58]} d3 {[%emt 0:00:00]} 48. g6 {[%emt 0:00:30]} 0-1